fUSD/lending_fUSD_20260127
["ID","MTS","AMOUNT","RATE_DAILY","PERIOD"]
[403715259,1769501460205,-151.0,0.00038356,120]
[403715260,1769501460216,-151.0,0.00038356,120]
[403715261,1769501460226,-151.0,0.00038356,120]
[403715262,1769501460235,-151.0,0.00038356,120]
[403715263,1769501460244,-151.0,0.00038356,120]
[403715264,1769501460254,-151.0,0.00038356,120]
[403715265,1769501460263,-151.0,0.00038356,120]
[403715266,1769501460273,-218.195489,0.00038356,120]
[403715267,1769501460282,-151.0,0.00038356,120]
[403715268,1769501460292,-191.694344,0.00038356,120]
[403715269,1769501460301,-1160.674242,0.00038356,120]
[403715270,1769501460311,-281.903925,0.00038356,120]
[403715271,1769501460320,-1160.674242,0.00038356,120]
[403715272,1769501460330,-281.903925,0.00038356,120]
[403715273,1769501460339,-1160.674242,0.00038356,120]
[403715274,1769501460349,-281.903925,0.00038356,120]
[403715275,1769501460358,-1160.674242,0.00038356,120]
[403715276,1769501460368,-1160.674242,0.00038356,120]
[403715277,1769501460377,-197.180028,0.00038356,120]
[403715278,1769501460387,-1160.674242,0.00038356,120]
[403715279,1769501460396,-197.180028,0.00038356,120]
[403715280,1769501460406,-197.180028,0.00038356,120]
[403715281,1769501460415,-1160.674242,0.00038356,120]
[403715282,1769501460424,-611.962154,0.00038356,120]
[403715283,1769501460433,-197.180028,0.00038356,120]
[403715284,1769501460442,-1160.674242,0.00038356,120]
[403715285,1769501460451,-611.962154,0.00038356,120]
[403715286,1769501460461,-197.180028,0.00038356,120]
[403715287,1769501460471,-1160.674242,0.00038356,120]
[403715288,1769501460481,-611.962154,0.00038356,120]
[403715289,1769501460490,-197.180028,0.00038356,120]
[403715290,1769501460500,-1160.674242,0.00038356,120]
[403715291,1769501460509,-197.180028,0.00038356,120]
[403715292,1769501460519,-611.962154,0.00038356,120]
[403715293,1769501460528,-1160.674242,0.00038356,120]
[403715294,1769501460538,-197.180028,0.00038356,120]
[403715295,1769501460548,-611.962154,0.00038356,120]
[403715296,1769501460558,-1160.674242,0.00038356,120]
[403715297,1769501460568,-197.180028,0.00038356,120]
[403715298,1769501460577,-611.962154,0.00038356,120]
[403715299,1769501460586,-151.0,0.00038356,120]
[403715300,1769501460596,-1160.674242,0.00038356,120]
[403715301,1769501460605,-197.180028,0.00038356,120]
[403715302,1769501460615,-611.962154,0.00038356,120]
[403715303,1769501460624,-151.0,0.00038356,120]
[403715304,1769501460634,-1160.674242,0.00038356,120]
[403715305,1769501460644,-197.180028,0.00038356,120]
[403715306,1769501460653,-611.962154,0.00038356,120]
[403715307,1769501460662,-151.0,0.00038356,120]
[403715308,1769501460672,-1160.674242,0.00038356,120]
[403715309,1769501460680,-197.180028,0.00038356,120]
[403715310,1769501460690,-611.962154,0.00038356,120]
[403715311,1769501460699,-151.0,0.00038356,120]
[403715312,1769501460711,-1160.674242,0.00038356,120]
[403715313,1769501460720,-197.180028,0.00038356,120]
[403715314,1769501460729,-611.962154,0.00038356,120]
[403715315,1769501460738,-151.0,0.00038356,120]
[403715316,1769501460747,-1160.674242,0.00038356,120]
[403715317,1769501460756,-197.180028,0.00038356,120]
[403715318,1769501460766,-611.962154,0.00038356,120]
[403715319,1769501460775,-151.0,0.00038356,120]
[403715320,1769501460784,-1160.674242,0.00038356,120]
[403715321,1769501460792,-346.500059,0.00038356,90]
[403715322,1769501460801,-197.180028,0.00038356,120]
[403715323,1769501460810,-611.962154,0.00038356,120]
[403715324,1769501460819,-151.0,0.00038356,120]
[403715325,1769501460828,-1160.674242,0.00038356,120]
[403715326,1769501460837,-346.500059,0.00038356,90]
[403715327,1769501460846,-197.180028,0.00038356,120]
[403715328,1769501460856,-611.962154,0.00038356,120]
[403715329,1769501460867,-1160.674246,0.00038356,120]
[403715330,1769501460876,-346.500059,0.00038356,90]
[403715331,1769501460886,-151.0,0.00038356,120]
[403715332,1769501460895,-197.180028,0.00038356,120]
[403715333,1769501460906,-611.962154,0.00038356,120]
[403715334,1769501460918,-346.500059,0.00038356,90]
[403715335,1769501460928,-151.0,0.00038356,120]
[403715336,1769501460939,-151.0,0.00038356,120]
[403715337,1769501460950,-197.180028,0.00038356,120]
[403715338,1769501460959,-611.962154,0.00038356,120]
[403715339,1769501460968,-346.500059,0.00038356,90]
[403715340,1769501460977,-151.0,0.00038356,120]
[403715341,1769501460987,-197.180028,0.00038356,120]
[403715342,1769501460996,-611.962154,0.00038356,120]
[403715343,1769501461005,-151.0,0.00038356,120]
[403715344,1769501461015,-197.180032,0.00038356,120]
[403715345,1769501461024,-611.962154,0.00038356,120]
[403715346,1769501461033,-242.34955,0.00038356,120]
[403715347,1769501461042,-346.500059,0.00038356,90]
[403715348,1769501461051,-158.318194,0.00038356,120]
[403715349,1769501461060,-611.962154,0.00038356,120]
[403715350,1769501461069,-346.500059,0.00038356,90]
[403715351,1769501461079,-611.962154,0.00038356,120]
[403715352,1769501461088,-346.500059,0.00038356,90]
[403715353,1769501461097,-281.903925,0.00038356,120]
[403715354,1769501461107,-611.96216,0.00038356,120]
[403715355,1769501461116,-346.500059,0.00038356,90]
[403715356,1769501461125,-281.903925,0.00038356,120]
[403715357,1769501461135,-346.500059,0.00038356,90]
[403715358,1769501461144,-281.903925,0.00038356,120]
[403715359,1769501461153,-4592.46042,0.00038356,14]
[403715360,1769501461163,-346.500059,0.00038356,90]
[403715361,1769501461173,-281.903925,0.00038356,120]
[403715362,1769501461182,-346.500059,0.00038356,90]
[403715363,1769501461191,-4592.46042,0.00038356,14]
[403715364,1769501461200,-281.903925,0.00038356,120]
[403715365,1769501461210,-424.29682,0.00038356,120]
[403715366,1769501461219,-346.500059,0.00038356,90]
[403715367,1769501461228,-4592.46042,0.00038356,14]
[403715368,1769501461237,-424.29682,0.00038356,120]
[403715369,1769501461250,-346.500059,0.00038356,90]
[403715370,1769501461259,-281.903925,0.00038356,120]
[403715371,1769501461268,-4592.46042,0.00038356,14]
[403715372,1769501461277,-424.29682,0.00038356,120]
[403715373,1769501461286,-346.500059,0.00038356,90]
[403715374,1769501461295,-281.903925,0.00038356,120]
[403715375,1769501461304,-4592.46042,0.00038356,14]
[403715376,1769501461313,-424.29682,0.00038356,120]
[403715377,1769501461323,-346.500059,0.00038356,90]
[403715378,1769501461331,-281.903925,0.00038356,120]
[403715379,1769501461340,-4592.46042,0.00038356,14]
[403715380,1769501461349,-424.29682,0.00038356,120]
[403715381,1769501461358,-4592.46042,0.00038356,14]
[403715382,1769501461367,-281.903925,0.00038356,120]
[403715383,1769501461377,-346.500059,0.00038356,90]
[403715384,1769501461394,-424.29682,0.00038356,120]
[403715385,1769501461407,-4592.46042,0.00038356,14]
[403715386,1769501461416,-346.500059,0.00038356,90]
[403715387,1769501461425,-281.903925,0.00038356,120]
[403715388,1769501461434,-424.29682,0.00038356,120]
[403715389,1769501461444,-4592.46042,0.00038356,14]
[403715390,1769501461454,-346.500059,0.00038356,90]
[403715391,1769501461464,-281.903925,0.00038356,120]
[403715392,1769501461473,-424.29682,0.00038356,120]
[403715393,1769501461482,-4592.46042,0.00038356,14]
[403715394,1769501461492,-346.500055,0.00038356,90]
[403715395,1769501461501,-281.903925,0.00038356,120]
[403715396,1769501461510,-424.29682,0.00038356,120]
[403715397,1769501461520,-4592.46042,0.00038356,14]
[403715398,1769501461529,-281.903925,0.00038356,120]
[403715399,1769501461539,-424.29682,0.00038356,120]
[403715400,1769501461548,-4592.46042,0.00038356,14]
[403715401,1769501461557,-281.903925,0.00038356,120]
[403715402,1769501461567,-424.29682,0.00038356,120]
[403715403,1769501461576,-4592.46042,0.00038356,14]
[403715404,1769501461585,-281.903925,0.00038356,120]
[403715405,1769501461595,-4592.46042,0.00038356,14]
[403715406,1769501461604,-281.903925,0.00038356,120]
[403715407,1769501461614,-424.29682,0.00038356,120]
[403715408,1769501461624,-4592.46042,0.00038356,14]
[403715409,1769501461634,-151.0,0.00038356,120]
[403715410,1769501461643,-281.90392,0.00038356,120]
[403715411,1769501461653,-424.29682,0.00038356,120]
[403715412,1769501461662,-4592.46042,0.00038356,14]
[403715413,1769501461672,-151.0,0.00038356,120]
[403715414,1769501461682,-424.29682,0.00038356,120]
[403715415,1769501461691,-4592.46042,0.00038356,14]
[403715416,1769501461701,-151.0,0.00038356,120]
[403715417,1769501461714,-424.29682,0.00038356,120]
[403715418,1769501461724,-4592.46042,0.00038356,14]
[403715419,1769501461733,-151.0,0.00038356,120]
[403715420,1769501461742,-424.29682,0.00038356,120]
[403715421,1769501461754,-4592.46042,0.00038356,14]
[403715422,1769501461763,-151.0,0.00038356,120]
[403715423,1769501461773,-424.29682,0.00038356,120]
[403715424,1769501461783,-151.0,0.00038356,120]
[403715425,1769501461792,-424.29682,0.00038356,120]
[403715426,1769501461802,-4592.460424,0.00038356,14]
[403715427,1769501461811,-151.0,0.00038356,120]
[403715428,1769501461820,-424.29682,0.00038356,120]
[403715429,1769501461829,-151.0,0.00038356,120]
[403715430,1769501461838,-600.0,0.00038356,2]
[403715431,1769501461847,-250.0,0.000385,45]
[403715432,1769501461856,-250.0,0.000385,45]
[403715433,1769501461866,-250.0,0.000385,45]
[403715434,1769501461875,-250.0,0.000385,45]
[403715435,1769501461888,-250.0,0.000385,45]
[403715436,1769501461905,-500.0,0.00038578,14]
[403715437,1769501461919,-800.0,0.00038578,14]
[403715438,1769501461939,-1414.41,0.000386,14]
[403715439,1769501461959,-853.2,0.000386,14]
[403715440,1769501461977,-150.0,0.0003861,30]
[403715441,1769501461987,-150.0,0.0003861,30]
[403715442,1769501461997,-1000.0,0.0003863,14]
[403715443,1769501462007,-503.0,0.00038667,21]
[403715444,1769501462017,-615.0,0.00038692,2]
[403715445,1769501462027,-173.40430254,0.00038749,65]
[403715446,1769501462037,-2018.57,0.000388,30]
[403715447,1769501462048,-1000.0,0.00038904,14]
[403715448,1769501462059,-600.0,0.00038904,2]
[403715449,1769501462068,-210.0,0.0003891,30]
[403715450,1769501462079,-334.6852974,0.00039,120]
[403715451,1769501462089,-250.0,0.00039,45]
[403715452,1769501462098,-250.0,0.00039,45]
[403715453,1769501462107,-250.0,0.00039,45]
[403715454,1769501462117,-250.0,0.00039,45]
[403715455,1769501462126,-250.0,0.00039,45]
[403715456,1769501462136,-350.0,0.00039,120]
[403715457,1769501462145,-300.0,0.0003904,2]
[403715458,1769501462155,-456.35570575,0.0003904,2]
[403715459,1769501462164,-300.0,0.0003904,2]
[403715460,1769501462173,-300.0,0.0003904,2]
[403715461,1769501462183,-1076.31223088,0.0003904,2]
[403715462,1769501462192,-300.0,0.0003904,2]
[403715463,1769501462201,-300.0,0.0003904,2]
[403715464,1769501462210,-369.42880651,0.0003904,2]
[403715465,1769501462219,-300.0,0.0003904,2]
[403715466,1769501462229,-300.0,0.0003904,2]
[403715467,1769501462238,-300.0,0.0003904,2]
[403715468,1769501462248,-300.0,0.0003904,2]
[403715469,1769501462257,-300.0,0.0003904,2]
[403715470,1769501462266,-300.0,0.0003904,2]
[403715471,1769501462276,-515.84561609,0.0003904,2]
[403715472,1769501462285,-304.62142447,0.0003904,2]
[403715473,1769501462295,-300.0,0.0003904,2]
[403715474,1769501462305,-300.0,0.0003904,2]
[403715475,1769501462315,-300.0,0.0003904,2]
[403715476,1769501462324,-300.0,0.0003904,2]
[403715477,1769501462333,-315.2913055,0.0003904,2]
[403715478,1769501462343,-300.0,0.0003904,2]
[403715479,1769501462353,-300.0,0.0003904,2]
[403715480,1769501462363,-300.0,0.0003904,2]
[403715481,1769501462372,-300.0,0.0003904,2]
[403715482,1769501462382,-300.15403375,0.0003904,2]
[403715483,1769501462391,-300.0,0.0003904,2]
[403715484,1769501462401,-851.13552092,0.0003904,2]
[403715485,1769501462410,-304.47217561,0.0003904,2]
[403715486,1769501462420,-300.0,0.0003904,2]
[403715487,1769501462430,-579.9373616,0.0003904,2]
[403715488,1769501462440,-300.0,0.0003904,2]
[403715489,1769501462449,-300.0,0.0003904,2]
[403715490,1769501462459,-300.0,0.0003904,2]
[403715491,1769501462479,-305.64576673,0.0003904,2]
[403715492,1769501462488,-300.0,0.0003904,2]
[403715493,1769501462498,-300.0,0.0003904,2]
[403715494,1769501462508,-151.0,0.00039041,120]
[403715495,1769501462517,-151.0,0.00039041,120]
[403715496,1769501462527,-151.0,0.00039041,120]
[403715497,1769501462536,-151.0,0.00039041,120]
[403715498,1769501462546,-151.0,0.00039041,120]
[403715499,1769501462556,-151.0,0.00039041,120]
[403715500,1769501462566,-151.0,0.00039041,120]
[403715501,1769501462575,-151.0,0.00039041,120]
[403715502,1769501462586,-232.0,0.00039041,120]
[403715503,1769501462596,-1008.1,0.00039105,120]
[403715504,1769501462606,-500.0,0.00039126,14]
[403715505,1769501462616,-227.6,0.00039143,53]
[403715506,1769501462627,-2744.766,0.00039143,53]
[403715507,1769501462637,-1000.0,0.00039178,14]
[403715508,1769501462647,-1159.3356,0.00039203,3]
[403715509,1769501462656,-2000.0,0.00039203,3]
[403715510,1769501462666,-2000.0,0.00039203,3]
[403715511,1769501462676,-500.0,0.00039315,120]
[403715512,1769501462686,-500.0,0.00039315,120]
[403715513,1769501462695,-500.0,0.00039315,120]
[403715514,1769501462707,-500.0,0.00039315,120]
[403715515,1769501462721,-500.0,0.00039315,120]
[403715516,1769501462731,-500.0,0.00039315,120]
[403715517,1769501462740,-230.33984762,0.00039315,120]
[403715518,1769501462751,-503.0,0.00039333,21]
[403715519,1769501462761,-150.0,0.00039342,2]
[403715520,1769501462770,-520.07,0.00039366,120]
[403715521,1769501462781,-908.42804262,0.000394,31]
[403715522,1769501462791,-500.0,0.000394,14]
[403715523,1769501462800,-800.0,0.000394,14]
[403715524,1769501462810,-866760.18169629,0.000394,20]
[403715525,1769501464437,-1.7e-07,0.00038356,120]
[403715526,1769501464452,-424.29681283,0.00038356,120]
[403715527,1769501464462,-18139.65351935,0.000394,20]
[403715528,1769501464599,-616.21562838,0.00030592,2]
[403715529,1769501464608,-204.012865,0.00038356,120]
[403715530,1769501464622,-306.37175927,0.000394,20]
[403715531,1769501464644,-485.305,0.000394,20]
[403715532,1769501464656,-416.16051638,0.000394,20]
[403715533,1769501464790,-151.0,0.00016226,2]
[403715534,1769501464807,-2887.44004549,0.00022102,2]
[403715535,1769501464819,-1998.2379753,0.00022102,2]
[403715549,1769501797505,379.0,0.00015422,120]
[403715566,1769502175709,302.27,0.00015194,3]
[403715567,1769502270571,160.0,0.000152,2]
[403715568,1769502349165,162.0,0.000152,2]
[403715572,1769502368430,1500.0,0.00015023,2]
[403715574,1769502395948,8338.01,0.0001513,2]
[403715575,1769502395974,6038.75,0.0001513,2]
[403715576,1769502447945,150.0,0.00014935,2]
[403715577,1769502499505,9850.01,0.00014887,2]
[403715578,1769502499530,10000.01,0.00014887,2]
[403715579,1769502499553,2285.61,0.00014887,2]
[403715586,1769502571188,500.0,0.00014767,2]
[403715587,1769502613621,164.13,0.00014713,2]
[403715588,1769502630829,209.47716417,0.00015224,2]
[403715595,1769502631609,-300.0,0.00015322,2]
[403715596,1769502631623,-1200.0,0.00015322,2]
[403715597,1769502631635,-300.0,0.00015322,2]
[403715598,1769502631647,-195.0,0.00015323,2]
[403715599,1769502631659,-2553.93048328,0.00015323,2]
[403715600,1769502631672,-277.0,0.00015323,2]
[403715601,1769502631684,-920141.82392288,0.00015323,2]
[403715602,1769502631699,-55483.81523323,0.00015323,2]
[403715603,1769502631714,-7418.96983387,0.00015323,2]
[403715604,1769502631729,-16955.39101002,0.00015323,2]
[403715605,1769502631742,-2391.49548238,0.00015324,2]
[403715606,1769502631755,-195.0,0.00015341,2]
[403715608,1769502631771,-195.0,0.00015352,2]
[403715609,1769502631787,-250.0,0.00015359,2]
[403715610,1769502631802,-250.0,0.0001536,2]
[403715611,1769502631816,-300.0,0.0001536,2]
[403715612,1769502631831,-2941.85,0.00015362,2]
[403715613,1769502631846,-168.55166945,0.0001537,2]
[403715614,1769502631860,-1050.88046112,0.00015423,5]
[403715615,1769502631875,-1050.88046112,0.00015423,5]
[403715616,1769502631889,-290.61766379,0.00015423,2]
[403715617,1769502631903,-205.19,0.00015423,2]
[403715618,1769502631916,-500.0,0.00015423,2]
[403715619,1769502631929,-500.0,0.00015423,2]
[403715620,1769502631944,-500.0,0.00015423,2]
[403715621,1769502631964,-500.0,0.00015423,2]
[403715622,1769502631979,-500.0,0.00015423,2]
[403715623,1769502631995,-243.29239724,0.00015423,2]
[403715624,1769502632009,-2305.77825929,0.00015423,2]
[403715625,1769502632026,-314.81374071,0.00015423,2]
[403715626,1769502632042,-217.343,0.00015423,2]
[403715627,1769502632057,-439.03325929,0.00015423,2]
[403715628,1769502632073,-60.96674071,0.00015423,2]
[403715629,1769502632090,-509.44466748,0.00015423,2]
[403715630,1769502632104,-500.0,0.00015423,2]
[403715631,1769502632119,-500.0,0.00015423,2]
[403715632,1769502632133,-436.50790958,0.00015423,2]
[403715633,1769502632147,-176.01225538,0.00015423,2]
[403715634,1769502632162,-500.0,0.00015423,2]
[403715635,1769502632176,-500.0,0.00015423,2]
[403715636,1769502632190,-500.0,0.00015423,2]
[403715637,1769502632203,-300.0,0.00015423,2]
[403715638,1769502632216,-500.0,0.00015423,2]
[403715639,1769502632228,-500.0,0.00015423,2]
[403715640,1769502632241,-500.0,0.00015423,2]
[403715641,1769502632252,-238.35551531,0.00015423,2]
[403715642,1769502632283,-261.64448469,0.00015423,2]
[403715643,1769502632298,-338.35551531,0.00015423,2]
[403715644,1769502632330,-161.64448469,0.00015423,2]
[403715645,1769502632344,-500.0,0.00015423,2]
[403715646,1769502632358,-500.0,0.00015423,2]
[403715647,1769502632371,-500.0,0.00015423,2]
[403715648,1769502632384,-150.0,0.00015423,2]
[403715649,1769502632401,-125.10614038,0.00015424,2]
[403715652,1769502637645,-1972.78274802,0.00015424,2]
[403715653,1769502637662,-3695.81972514,0.00015424,2]
[403715655,1769502637675,-166.66,0.00015453,2]
[403715657,1769502637686,-150.00125333,0.00015506,2]
[403715659,1769502637697,-2356.4,0.00015535,2]
[403715661,1769502637708,-2391.49548231,0.0001561,2]
[403715663,1769502637720,-205.19,0.00015697,2]
[403715664,1769502637730,-2391.49548231,0.00015896,2]
[403715665,1769502637742,-691.22,0.00015918,2]
[403715666,1769502637753,-4931.00455154,0.0001596,2]
[403715668,1769502637764,-166.66,0.00015963,2]
[403715670,1769502637775,-205.21,0.00015971,2]
[403715672,1769502637786,-7873.66159816,0.00016,4]
[403715674,1769502637798,-2391.49548231,0.00016183,2]
[403715677,1769502637808,-14010.0760298,0.000162,5]
[403715679,1769502637820,-252.78055372,0.00016438,2]
[403715680,1769502637831,-6215.35,0.00016438,2]
[403715681,1769502637849,-6215.35,0.00016438,2]
[403715682,1769502637867,-6215.35,0.00016438,2]
[403715683,1769502637880,-679.57925296,0.00016438,2]
[403715684,1769502637922,-322.7392854,0.00016438,2]
[403715685,1769502637936,-426.4607146,0.00016438,2]
[403715686,1769502637951,-480.21945213,0.00016438,2]
[403715778,1769502640489,-4306.35129491,0.00016438,2]
[403715779,1769502640498,-3653.98886795,0.00016438,2]
[403715780,1769502640516,-2561.36113205,0.00016438,2]
[403715781,1769502640525,-1087.42569245,0.00016438,2]
[403715782,1769502640537,-5127.92430755,0.00016438,2]
[403715783,1769502640546,-6215.35,0.00016438,2]
[403715784,1769502640555,-6215.35,0.00016438,2]
[403715785,1769502640564,-6215.35,0.00016438,2]
[403715786,1769502640573,-6215.35,0.00016438,2]
[403715787,1769502640582,-6215.35,0.00016438,2]
[403715788,1769502640592,-6215.35,0.00016438,2]
[403715789,1769502640604,-6215.35,0.00016438,2]
[403715790,1769502640614,-6215.35,0.00016438,2]
[403715791,1769502640625,-6215.35,0.00016438,2]
[403715792,1769502640634,-6215.35,0.00016438,2]
[403715793,1769502640645,-6215.35,0.00016438,2]
[403715794,1769502640655,-6215.35,0.00016438,2]
[403715795,1769502640664,-6215.35,0.00016438,2]
[403715796,1769502640673,-6215.35,0.00016438,2]
[403715797,1769502640682,-6215.35,0.00016438,2]
[403715798,1769502640691,-6215.35,0.00016438,2]
[403715799,1769502640700,-6215.35,0.00016438,2]
[403715800,1769502640711,-6215.57189667,0.00016438,2]
[403715801,1769502640722,-5793.70861354,0.00016438,2]
[403715802,1769502640734,-500.2094616,0.00016444,2]
[403715803,1769502640743,-2391.49548231,0.00016469,2]
[403715804,1769502640752,-166.66,0.00016473,2]
[403715805,1769502640761,-691.22,0.00016515,2]
[403715806,1769502640770,-303.32,0.00016742,2]
[403715807,1769502640779,-2391.49548231,0.00016755,2]
[403715808,1769502640788,-420.0,0.00016764,2]
[403715809,1769502640797,-420.0,0.00016804,2]
[403715810,1769502640806,-1680.0,0.00016848,2]
[403715811,1769502640815,-195.0,0.00016854,2]
[403715812,1769502640824,-2500.0,0.00016854,2]
[403715813,1769502640833,-500.0,0.00016854,2]
[403715814,1769502640843,-600.0,0.00016854,2]
[403715815,1769502640853,-195.0,0.00016856,2]
[403715816,1769502640864,-150.00125333,0.00016874,2]
[403715817,1769502640873,-3023.1228,0.00016877,2]
[403715818,1769502640883,-250.0,0.00016895,2]
[403715819,1769502640892,-11263.09779402,0.000169,2]
[403715820,1769502640902,-209.47716417,0.000169,2]
[403715821,1769502640913,-24451.51,0.00016922,2]
[403715822,1769502640922,-150.99,0.00016922,2]
[403715823,1769502640932,-9999.99,0.00016922,2]
[403715824,1769502640943,-7189.26,0.00016922,2]
[403715825,1769502640953,-166.66,0.00016983,2]
[403715826,1769502640964,-311336.08095073,0.00017,2]
[403715827,1769502640973,-250.0,0.00017,2]
[403715828,1769502640983,-160.0,0.00017,2]
[403715829,1769502640992,-2391.49548231,0.00017041,2]
[403715830,1769502641002,-691.22,0.00017112,2]
[403715831,1769502641011,-2391.49548231,0.00017328,2]
[403715832,1769502641020,-166.66,0.00017493,2]
[403715833,1769502641032,-920.46218234,0.00017522,2]
[403715834,1769502641041,-2391.49548231,0.00017614,2]
[403715835,1769502641052,-150.0,0.00017699,2]
[403715836,1769502641061,-500.0,0.00017699,2]
[403715837,1769502641070,-500.0,0.00017699,2]
[403715838,1769502641079,-150.0,0.00017699,2]
[403715839,1769502641090,-500.0,0.00017699,2]
[403715840,1769502641099,-150.0,0.00017699,2]
[403715841,1769502641108,-500.0,0.00017699,2]
[403715842,1769502641117,-500.0,0.00017699,2]
[403715843,1769502641127,-150.0,0.00017699,2]
[403715844,1769502641137,-500.0,0.00017699,2]
[403715845,1769502641147,-691.22,0.00017709,2]
[403715846,1769502641157,-150.0,0.00017754,2]
[403715847,1769502641167,-500.0,0.00017754,2]
[403715848,1769502641184,-500.0,0.00017754,2]
[403715849,1769502641193,-152.26425777,0.00017754,2]
[403715850,1769502641202,-500.0,0.00017754,2]
[403715851,1769502641211,-500.0,0.00017754,2]
[403715852,1769502641220,-500.0,0.00017754,2]
[403715853,1769502641229,-150.0,0.00017754,2]
[403715854,1769502641238,-500.0,0.00017754,2]
[403715855,1769502641250,-500.0,0.00017808,2]
[403715856,1769502641267,-200.0,0.00017809,2]
[403715857,1769502641277,-500.0,0.00017809,2]
[403715858,1769502641286,-500.0,0.00017809,2]
[403715859,1769502641296,-500.0,0.00017809,2]
[403715860,1769502641306,-500.0,0.00017809,2]
[403715861,1769502641316,-500.0,0.00017809,2]
[403715862,1769502641331,-200.0,0.00017809,2]
[403715863,1769502641342,-348.78091583,0.00017809,2]
[403715864,1769502641352,-924.1,0.00017835,2]
[403715865,1769502641362,-1001.03453885,0.0001786,2]
[403715866,1769502641371,-500.0,0.00017863,2]
[403715867,1769502641381,-500.0,0.00017863,2]
[403715868,1769502641391,-500.0,0.00017863,2]
[403715869,1769502641400,-500.0,0.00017863,2]
[403715870,1769502641409,-500.0,0.00017863,2]
[403715871,1769502641419,-500.0,0.00017863,2]
[403715872,1769502641429,-162.0,0.000179,2]
[403715873,1769502641439,-2391.49548231,0.000179,2]
[403715874,1769502641448,-550.25488212,0.000179,2]
[403715875,1769502641457,-500.0,0.00017918,2]
[403715876,1769502641467,-500.0,0.00017918,2]
[403715877,1769502641476,-500.0,0.00017918,2]
[403715878,1769502641485,-500.0,0.00017918,2]
[403715879,1769502641494,-500.0,0.00017918,2]
[403715880,1769502641503,-500.0,0.00017918,2]
[403715881,1769502641513,-375.19870368,0.00017972,2]
[403715882,1769502641522,-500.0,0.00017973,2]
[403715883,1769502641531,-439.9721102,0.00017973,2]
[403715884,1769502641540,-500.0,0.00017973,2]
[403715885,1769502641549,-403.57788103,0.00017973,2]
[403715886,1769502641559,-500.0,0.00017973,2]
[403715887,1769502641568,-3568702.75336746,0.00018,2]
[403715888,1769502641576,-257452.353909,0.00018,2]
[403715889,1769502641593,-679.77855441,0.00018,2]
[403715890,1769502641615,-445.40166449,0.00018,2]
[403715891,1769502641634,-653.7286811,0.00018,2]
[403715892,1769502641645,-926.039998,0.00018,2]
[403715893,1769502641656,-406.95691,0.00018,2]
[403715915,1769502642711,-407.92232395,0.00018,2]
[403715916,1769502642722,-2101.80113219,0.00018,2]
[403715917,1769502642823,-13935.3361768,0.00018,2]
[403715918,1769502642848,-4049.49475251,0.00018,2]
[403715924,1769502645647,-1180.95304529,0.00018,2]
[403715925,1769502645661,-266.80887864,0.00018,2]
[403715926,1769502645692,-559.37803705,0.00018,2]
[403715927,1769502645703,-547.44,0.00018,2]
[403715928,1769502645827,-675.46302783,0.00018,2]
[403715929,1769502645838,-4022.57045668,0.00018,2]
[403715930,1769502645848,-14288.09064933,0.00018,2]
[403715931,1769502645859,-5210.14308199,0.00018,2]
[403715932,1769502645870,-593.82396974,0.00018,2]
[403715933,1769502645983,-3982.22704035,0.00018,2]
[403716008,1769502940594,-153.49,0.00015321,2]
[403716028,1769503177538,-209.47716417,0.00015256,2]